[Event "8th Amsterdam Summer Open-A 2018"]
[Site "Amsterdam"]
[Date "2018.07.08"]
[Round "2"]
[White "Riemersma, Li"]
[Black "Vroombout, Enrico"]
[Result "1-0"]
[ECO "E87"]
[WhiteElo "2458"]
[BlackElo "2132"]
[Annotator "ChessBase"]
[PlyCount "121"]
[EventDate "2018.07.07"]
[EventType "swiss"]
[EventCountry "NED"]
[SourceTitle "playchess.com"]
[Source "ChessBase"]
[SourceQuality "1"]
[TimeControl "40/5400+30:1800+30"]

1. d4 {[%emt 0:00:00]} Nf6 {[%emt 0:00:00]} 2. c4 {[%emt 0:00:00]} g6 {[%emt 0:00:00]} 3. Nc3 {[%emt 0:00:00]} Bg7 {[%emt 0:00:00]} 4. e4 {[%emt 0:00:05]} d6 {[%emt 0:00:00]} 5. f3 {[%emt 0:00:15]} O-O {[%emt 0:00:00]} 6. Be3 {[%emt 0:00:04]} e5 {[%emt 0:00:04]} 7. d5 {[%emt 0:00:12]} Nh5 {[%emt 0:00:13]} 8. Qd2 {[%emt 0:00:23]} f5 {[%emt 0:01:21]} 9. O-O-O {[%emt 0:11:05]} a6 {[%emt 0:02:32]} 10. Kb1 {[%emt 0:01:18]} Nd7 {[%emt 0:07:35]} 11. Nge2 {[%emt 0:09:59]} Ndf6 {[%emt 0:24:42]} 12. Ng3 {[%emt 0:20:20]} f4 {[%emt 0:20:59]} 13. Nxh5 {[%emt 0:00:09]} Nxh5 {[%emt 0:00:03]} 14. Bf2 {[%emt 0:00:40]} Bf6 {[%emt 0:01:30]} 15. Qe1 {[%emt 0:08:14]} Be7 {[%emt 0:01:53]} 16. Rc1 {[%emt 0:06:03]} Ng7 {[%emt 0:07:18]} 17. Be2 {[%emt 0:05:24]} Rb8 {[%emt 0:03:53]} 18. Ba7 {[%emt 0:00:43]} Ra8 {[%emt 0:00:04]} 19. Bf2 {[%emt 0:00:05]} Rb8 {[%emt 0:00:02]} 20. g4 {[%emt 0:01:19]} Kh8 {[%emt 0:04:15]} 21. h4 {[%emt 0:03:10]} h6 {[%emt 0:00:08]} 22. Nd1 {[%emt 0:08:02]} c5 {[%emt 0:05:06]} 23. b4 {[%emt 0:02:56]} b6 {[%emt 0:04:37]} 24. Ka1 {[%emt 0:01:25]} Bd7 {[%emt 0:02:04]} 25. Nb2 {[%emt 0:02:51]} a5 {[%emt 0:02:57]} 26. bxc5 {[%emt 0:00:40]} bxc5 {[%emt 0:00:07]} 27. Qc3 {[%emt 0:01:29]} Qc7 {[%emt 0:02:03]} 28. Nd3 {[%emt 0:00:36]} Rb7 {[%emt 0:01:06]} 29. Bd1 {[%emt 0:10:54]} Kg8 {[%emt 0:01:27]} 30. Bc2 {[%emt 0:00:15]} Rfb8 {[%emt 0:02:25]} 31. h5 {[%emt 0:00:06]} g5 {[%emt 0:00:09]} 32. Rb1 {[%emt 0:00:11]} Rxb1+ {[%emt 0:00:14]} 33. Rxb1 {[%emt 0:00:12]} Rxb1+ {[%emt 0:00:12]} 34. Kxb1 {[%emt 0:00:26]} Bd8 {[%emt 0:03:25]} 35. Be1 {[%emt 0:01:04]} Kf7 {[%emt 0:01:53]} 36. Qa3 {[%emt 0:00:27]} Qb6+ {[%emt 0:01:27]} 37. Nb2 {[%emt 0:00:44]} Ne8 {[%emt 0:00:40]} 38. Ba4 {[%emt 0:00:54]} Nf6 {[%emt 0:00:55]} 39. Bxd7 {[%emt 0:00:32]} Nxd7 {[%emt 0:00:04]} 40. Qa4 {[%emt 0:00:20]} Ke7 {[%emt 0:01:36]} 41. Kc2 {[%emt 0:30:31]} Bc7 {[%emt 0:05:59]} 42. Qb5 {[%emt 0:00:00]} Qa7 {[%emt 0:06:41]} 43. Na4 {[%emt 0:00:00]} Kd8 {[%emt 0:00:41]} 44. Kb3 {[%emt 0:00:00]} Ke7 {[%emt 0:01:41]} 45. Nb2 {[%emt 0:00:00]} Kd8 {[%emt 0:00:03]} 46. Nd3 {[%emt 0:00:00]} Ke7 {[%emt 0:00:36]} 47. a3 {[%emt 0:00:00]} Kd8 {[%emt 0:00:52]} 48. Kc2 {[%emt 0:00:00]} Kc8 {[%emt 0:06:29]} 49. Nc1 {[%emt 0:00:00]} a4 {[%emt 0:05:57]} 50. Nd3 {[%emt 0:00:00]} Kd8 {[%emt 0:00:53]} 51. Nb2 {[%emt 0:00:00]} Nb6 {[%emt 0:00:10]} 52. Bc3 {[%emt 0:00:00]} Ke7 {[%emt 0:00:42]} 53. Be1 {[%emt 0:01:51]} Kd8 {[%emt 0:00:09]} 54. Nd1 {[%emt 0:00:50]} Nd7 {[%emt 0:00:34]} 55. Nc3 {[%emt 0:00:23]} Nb6 {[%emt 0:00:48]} 56. Kd3 {[%emt 0:00:04]} Qa8 {[%emt 0:00:37]} 57. Bf2 {[%emt 0:00:31]} Qb8 {[%emt 0:03:26]} 58. Qc6 {[%emt 0:01:05]} Nd7 {[%emt 0:01:34]} 59. Nb5 {[%emt 0:01:41]} Qb6 {[%emt 0:01:19]} 60. Qa8+ {[%emt 0:00:18]} Ke7 {[%emt 0:00:17]} 61. Qh8 {[%emt 0:01:29]} 1-0

[Event "8th Amsterdam Summer Open-A 2018"]
[Site "Amsterdam"]
[Date "2018.07.08"]
[Round "2"]
[White "Brink, Barry"]
[Black "Mesman, Edwyn"]
[Result "1-0"]
[ECO "D92"]
[WhiteElo "2342"]
[BlackElo "2100"]
[Annotator "NA"]
[PlyCount "91"]
[EventDate "2018.07.07"]
[EventType "swiss"]
[EventCountry "NED"]
[SourceTitle "playchess.com"]
[Source "ChessBase"]
[SourceQuality "1"]
[TimeControl "40/5400+30:1800+30"]

1. d4 {[%emt 0:07:12]} Nf6 {[%emt 0:00:00]} 2. c4 {[%emt 0:00:53]} g6 {[%emt 0:00:00]} 3. Nc3 {[%emt 0:00:56]} d5 {[%emt 0:00:21]} 4. Nf3 {[%emt 0:01:20]} Bg7 {[%emt 0:00:38]} 5. Bf4 {[%emt 0:00:31]} O-O {[%emt 0:01:59]} 6. Rc1 {[%emt 0:00:12]} Nh5 {[%emt 0:04:04] D92: Grünfeld: 4 Nf3 Bg7 5 Bf4} (6... Be6 7. e3 dxc4 8. Ng5 Bd5 9. e4 h6 10. exd5 hxg5 11. Bxg5 Nxd5 12. Bxc4 Nb6 13. Bb3 Nc6 14. d5 Nd4 15. O-O Qd7 16. Re1 Rfe8 17. h4 Rad8 18. a4 Nxb3 19. Qxb3 Nxd5 20. Nxd5 Qxd5 21. Qxd5 Rxd5 22. Rxc7 {½-½ (59) Xiong,J (2665)-Bok,B (2636) Saint Louis 2018}) 7. Be5 {[%emt 0:08:51]} dxc4 {[%emt 0:25:47]} 8. e3 {[%emt 0:08:21]} c5 $146 {[%emt 0:02:39]} ({Predecessor:} 8... Be6 9. d5 Bg4 10. Bxg7 Nxg7 11. Bxc4 Nd7 12. O-O e6 13. dxe6 Nxe6 14. Ne4 Bxf3 15. gxf3 {1-0 (50) Raghunandan,K (2451)-Tiglon,B (2292) Khanty-Mansiysk 2016}) 9. Bxg7 {[%emt 0:04:59]} Nxg7 {[%emt 0:03:41]} 10. d5 {[%emt 0:00:32]} e6 {[%emt 0:02:48]} 11. Bxc4 {[%emt 0:01:32]} exd5 {[%emt 0:02:09]} 12. Nxd5 {[%emt 0:00:13]} Nd7 {[%emt 0:05:37]} 13. O-O {[%emt 0:11:45]} b6 {[%emt 0:02:29]} 14. Qa4 {[%emt 0:02:22]} Nf6 {[%emt 0:17:24]} 15. Nxf6+ {[%emt 0:08:37]} Qxf6 {[%emt 0:00:55]} 16. Bd5 {[%emt 0:00:29]} Rb8 {[%emt 0:01:28]} 17. Qxa7 {[%emt 0:00:45]} Be6 {[%emt 0:00:43]} 18. Bxe6 {[%emt 0:02:01]} Qxe6 {[%emt 0:01:21]} 19. a3 {[%emt 0:10:32]} Nf5 {[%emt 0:09:14]} 20. Qa4 {[%emt 0:00:56]} Rfd8 {[%emt 0:02:21]} 21. Rfd1 {[%emt 0:00:59]} h6 {[%emt 0:01:59]} 22. Qf4 {[%emt 0:01:03]} Qb3 $16 {[%emt 0:05:11]} 23. Rd2 {[%emt 0:10:18]} Rbc8 {[%emt 0:00:27]} 24. Qc4 {[%emt 0:01:23]} Qxc4 {[%emt 0:00:44]} 25. Rxc4 {[%emt 0:00:07]} Rxd2 {[%emt 0:01:12]} 26. Nxd2 {[%emt 0:00:09]} Rd8 {[%emt 0:00:02]} 27. Rc2 {[%emt 0:00:20]} Kf8 {[%emt 0:01:32]} 28. Kf1 {[%emt 0:00:21]} Nd6 {[%emt 0:00:24]} 29. Ke2 {[%emt 0:00:16]} Ke7 {[%emt 0:00:07]} 30. Nc4 {[%emt 0:03:12]} Nxc4 {[%emt 0:00:40]} 31. Rxc4 {[%emt 0:00:08]} Rd6 {[%emt 0:01:21]} 32. Rc2 {[%emt 0:00:41]} Rf6 {[%emt 0:02:15]} 33. Rd2 {[%emt 0:00:42]} Rf5 {[%emt 0:01:19]} 34. g4 {[%emt 0:02:44]} Rg5 {[%emt 0:02:01]} 35. h3 {[%emt 0:00:41]} Re5 {[%emt 0:00:10]} 36. f4 {[%emt 0:02:10]} Re4 {[%emt 0:01:02]} 37. Kd3 {[%emt 0:00:13]} Re6 {[%emt 0:00:21]} 38. h4 {[%emt 0:00:56]} Kd6 {[%emt 0:01:28]} 39. e4 {[%emt 0:04:31]} Kc6 {[%emt 0:00:56]} 40. e5 {[%emt 0:05:31]} Re7 {[%emt 0:00:36]} 41. Ke4 {[%emt 0:30:26]} Kb5 {[%emt 0:11:13]} 42. Rd6 {[%emt 0:00:00]} Rb7 {[%emt 0:00:21]} 43. f5 {[%emt 0:00:00]} Kc4 {[%emt 0:02:11]} 44. fxg6 {[%emt 0:00:00]} fxg6 {[%emt 0:00:05]} 45. e6 {[%emt 0:00:00]} Kb3 {[%emt 0:00:05]} 46. Rd2 {[%emt 0:00:00]} 1-0

[Event "8th Amsterdam Summer Open-A 2018"]
[Site "Amsterdam"]
[Date "2018.07.08"]
[Round "2"]
[White "Kollen, Zyon"]
[Black "Cornelisse, Ticho"]
[Result "1-0"]
[ECO "B07"]
[WhiteElo "2313"]
[BlackElo "2074"]
[Annotator "NA"]
[PlyCount "73"]
[EventDate "2018.07.07"]
[EventType "swiss"]
[EventCountry "NED"]
[SourceTitle "playchess.com"]
[Source "ChessBase"]
[SourceQuality "1"]
[TimeControl "40/5400+30:1800+30"]

1. e4 {[%emt 0:00:00]} d6 {[%emt 0:00:00]} 2. d4 {[%emt 0:00:00]} Nf6 {[%emt 0:00:00]} 3. Nc3 {[%emt 0:00:00]} g6 {[%emt 0:00:00]} 4. Be3 {[%emt 0:00:00]} c6 {[%emt 0:00:16]} 5. Qd2 {[%emt 0:00:05]} b5 {[%emt 0:00:41]} 6. f3 {[%emt 0:00:10]} Nbd7 {[%emt 0:00:21]} 7. d5 {[%emt 0:03:58]} Nb6 {[%emt 0:20:45] B07: Pirc-Ufimzew-Verteidigung} (7... cxd5 8. Nxd5 a6 9. a4 bxa4 10. Rxa4 Bb7 11. Nxf6+ Nxf6 12. Nh3 Bg7 13. Be2 O-O 14. O-O Qc7 15. Nf4 {1-0 (33) Koykka,P (2367)-Tikkanen,H (2515) Stockholm 2018}) 8. dxc6 {[%emt 0:02:59]} Nc4 {[%emt 0:02:18]} 9. Bxc4 {[%emt 0:08:40]} bxc4 {[%emt 0:00:08]} 10. Qd4 $146 {[%emt 0:09:58]} ({Vorgänger:} 10. Nd5 Bg7 11. c7 Qd7 12. Nxf6+ Bxf6 13. Qd5 O-O 14. Qxa8 Qa4 15. Ne2 Bxb2 16. Rd1 Qa5+ 17. Kf2 Qxc7 18. Qxa7 Bb7 19. Qb6 Qxb6 20. Bxb6 Ra8 21. Bd4 Bxd4+ 22. Rxd4 {1-0 (22) Roitburd,T (2132)-Spillmann,P (1923) Ruhrgebiet 2004}) 10... Ba6 {[%emt 0:10:56]} 11. e5 {[%emt 0:10:40]} (11. Nge2 $18) 11... dxe5 {[%emt 0:02:11]} 12. Qxe5 {[%emt 0:00:06]} Qd6 {[%emt 0:09:47]} 13. Qxd6 {[%emt 0:07:09]} exd6 {[%emt 0:00:03]} 14. O-O-O {[%emt 0:00:42]} O-O-O {[%emt 0:05:25]} 15. Bg5 {[%emt 0:16:44]} Bg7 {[%emt 0:06:24]} 16. a4 {[%emt 0:01:51]} d5 {[%emt 0:09:00]} 17. Bxf6 {[%emt 0:05:15]} Bxf6 {[%emt 0:00:06]} 18. Nxd5 {[%emt 0:00:55]} c3 {[%emt 0:03:30]} 19. b4 {[%emt 0:09:38]} ({Viel schwächer ist} 19. Nxc3 $6 Rxd1+ 20. Kxd1 Bf1 $14) (19. bxc3 $16 Be5 20. Nh3) 19... Bf1 {[%emt 0:06:54]} (19... Bg5+ $142 20. f4 Rxd5 21. Rxd5 Bxf4+ 22. Kd1 Bf1) 20. Nxf6 {[%emt 0:08:25]} Rxd1+ {[%emt 0:00:54]} 21. Kxd1 {[%emt 0:00:04]} Bxg2 {[%emt 0:00:13]} 22. Ke2 {[%emt 0:00:23]} Rd8 {[%emt 0:05:45]} 23. Ne4 $15 {[%emt 0:04:18]} Bxh1 {[%emt 0:01:39]} 24. Nxc3 {[%emt 0:00:31]} Rd4 {[%emt 0:03:59]} 25. b5 {[%emt 0:00:26]} Rh4 {[%emt 0:01:05]} 26. Ke3 {[%emt 0:01:00]} Rxh2 {[%emt 0:00:31]} 27. Nge2 {[%emt 0:00:31]} Rh3 {[%emt 0:02:16]} 28. Nd4 {[%emt 0:01:38]} g5 {[%emt 0:00:28]} 29. Ne4 {[%emt 0:01:45]} h6 {[%emt 0:02:25]} 30. a5 {[%emt 0:02:22]} Bxf3 {[%emt 0:03:12]} 31. Nxf3 {[%emt 0:04:02]} g4 {[%emt 0:00:09]} 32. b6 {[%emt 0:00:18]} axb6 {[%emt 0:01:45]} 33. axb6 {[%emt 0:00:05]} Rxf3+ {[%emt 0:00:04]} 34. Kd2 {[%emt 0:01:18]} Kd8 {[%emt 0:02:33]} 35. c7+ {[%emt 0:00:36]} Kd7 {[%emt 0:00:19]} 36. Nd6 {[%emt 0:00:03]} Rf2+ {[%emt 0:00:39]} 37. Kc3 {[%emt 0:00:35]} 1-0

[Event "8th Amsterdam Summer Open-A 2018"]
[Site "Amsterdam"]
[Date "2018.07.08"]
[Round "2"]
[White "Van Baar, Esper"]
[Black "Bogaard, Milo"]
[Result "0-1"]
[ECO "A80"]
[WhiteElo "2252"]
[BlackElo "2073"]
[Annotator "NA"]
[PlyCount "130"]
[EventDate "2018.07.07"]
[EventType "swiss"]
[EventCountry "NED"]
[SourceTitle "playchess.com"]
[Source "ChessBase"]
[SourceQuality "1"]
[TimeControl "40/5400+30:1800+30"]

1. d4 {[%emt 0:00:00] Atalik,S} f5 {[%emt 0:00:00]} 2. Nc3 {[%emt 0:00:01]} Nf6 {[%emt 0:00:16]} 3. Bg5 {[%emt 0:00:07]} d5 {[%emt 0:00:12]} 4. e3 {[%emt 0:00:36]} e6 {[%emt 0:04:20]} 5. Nf3 {[%emt 0:00:29]} Be7 {[%emt 0:00:41]} 6. Bd3 {[%emt 0:01:20]} O-O {[%emt 0:01:49] A80: Dutch Defence: Unusual White second moves} 7. O-O {[%emt 0:00:57]} c5 {[%emt 0:08:07]} (7... Ne4 8. Bxe7 Qxe7 9. Ne2 Nd6 10. Rc1 Nd7 11. c4 c6 12. Qb3 Kh8 13. Qa3 a5 14. Ne5 {½-½ (45) So,W (2770)-Carlsen,M (2855) Leuven 2016}) 8. dxc5 {[%emt 0:03:27]} Bxc5 {[%emt 0:06:30]} 9. Na4 {[%emt 0:03:57]} Be7 {[%emt 0:15:09]} 10. c4 {[%emt 0:03:37]} Nc6 {[%emt 0:03:21]} 11. cxd5 $146 {[%emt 0:05:02]} ({Predecessor:} 11. Nc3 Kh8 12. Rc1 e5 13. cxd5 Nxd5 14. Nxd5 Bxg5 {1-0 (33) Atalik,S (2618)-Sorensen,T (2368) Antalya 2006 CBM 110 Extra [Atalik,S]}) 11... Nxd5 {[%emt 0:03:06]} 12. Bxe7 {[%emt 0:00:16]} Qxe7 {[%emt 0:00:47]} 13. Rc1 {[%emt 0:04:08]} Nf6 {[%emt 0:11:30]} 14. Nc5 {[%emt 0:05:00]} Nb4 {[%emt 0:04:53]} 15. Bb1 {[%emt 0:06:14]} b6 {[%emt 0:00:57]} 16. Na4 {[%emt 0:01:22]} Ba6 {[%emt 0:06:38]} 17. Re1 {[%emt 0:00:19]} Rfd8 {[%emt 0:01:32]} 18. Nd4 {[%emt 0:03:09]} Bb7 {[%emt 0:05:17]} 19. a3 {[%emt 0:07:51]} Na6 {[%emt 0:03:16]} 20. Nc3 {[%emt 0:07:03]} Nd5 {[%emt 0:03:43]} 21. Nxd5 {[%emt 0:02:03]} Bxd5 {[%emt 0:00:50]} 22. f3 {[%emt 0:03:22]} Kh8 {[%emt 0:04:40]} 23. b4 {[%emt 0:04:15]} Nc7 {[%emt 0:01:44]} 24. Qc2 $14 {[%emt 0:04:12]} Ne8 {[%emt 0:02:01]} 25. Red1 {[%emt 0:05:43]} Nd6 {[%emt 0:01:27]} 26. Ba2 {[%emt 0:06:31]} Rac8 {[%emt 0:00:29]} 27. Qe2 {[%emt 0:00:16]} Bxa2 {[%emt 0:07:11]} 28. Qxa2 {[%emt 0:00:05]} Rxc1 {[%emt 0:00:04]} 29. Rxc1 {[%emt 0:00:05]} Re8 {[%emt 0:00:06]} 30. Qc2 {[%emt 0:02:00]} Kg8 {[%emt 0:00:16]} 31. b5 {[%emt 0:01:45]} Nb7 {[%emt 0:01:47]} 32. a4 {[%emt 0:08:31]} Qa3 {[%emt 0:01:16]} 33. Qc3 {[%emt 0:02:36]} Qxc3 {[%emt 0:00:51]} 34. Rxc3 {[%emt 0:00:07]} Nc5 {[%emt 0:00:59]} 35. a5 {[%emt 0:00:54]} Re7 {[%emt 0:00:54]} 36. Nc6 {[%emt 0:01:45]} Rc7 {[%emt 0:00:45]} 37. Kf2 {[%emt 0:04:30]} Kf8 {[%emt 0:00:05]} 38. Rc4 {[%emt 0:01:19]} Nd7 {[%emt 0:00:23]} 39. a6 {[%emt 0:00:39]} Nc5 {[%emt 0:00:03]} 40. Kg3 {[%emt 0:02:35]} h6 {[%emt 0:01:05]} 41. h4 {[%emt 0:05:23]} Ke8 {[%emt 0:05:14]} 42. h5 {[%emt 0:03:23]} Rxc6 {[%emt 0:06:30]} 43. bxc6 {[%emt 0:00:09]} Kd8 {[%emt 0:00:03]} 44. Kf4 {[%emt 0:06:45]} Nd3+ {[%emt 0:00:35]} 45. Kg3 {[%emt 0:00:09]} Nc5 {[%emt 0:00:04]} 46. Rd4+ {[%emt 0:03:15]} Kc7 {[%emt 0:00:13]} 47. Kf4 {[%emt 0:00:11]} b5 {[%emt 0:05:41]} 48. Ke5 {[%emt 0:03:36]} Kxc6 {[%emt 0:07:37]} 49. g4 {[%emt 0:03:32]} b4 {[%emt 0:06:10]} 50. gxf5 {[%emt 0:02:59]} exf5 {[%emt 0:01:14]} 51. Kxf5 {[%emt 0:01:01]} Kb5 {[%emt 0:00:25]} 52. e4 {[%emt 0:01:30]} b3 {[%emt 0:00:06]} 53. e5 {[%emt 0:00:26]} b2 {[%emt 0:00:57]} 54. Rd1 {[%emt 0:00:04]} Kc4 {[%emt 0:00:12]} 55. e6 {[%emt 0:01:11]} Nxa6 {[%emt 0:00:03]} 56. Kg6 {[%emt 0:05:47]} Nc7 {[%emt 0:00:09]} 57. e7 {[%emt 0:00:21]} a5 {[%emt 0:00:10]} 58. Kxg7 {[%emt 0:00:16]} a4 {[%emt 0:00:11]} 59. Kg8 {[%emt 0:00:47]} a3 {[%emt 0:00:28]} 60. Rd7 {[%emt 0:00:27]} Ne8 {[%emt 0:00:16]} 61. Kf8 {[%emt 0:00:36]} b1=Q {[%emt 0:00:19]} 62. Kxe8 {[%emt 0:00:19]} a2 {[%emt 0:01:59]} 63. Rc7+ {[%emt 0:00:25]} Kd4 {[%emt 0:00:08]} 64. Kd8 {[%emt 0:00:47]} Qb8+ {[%emt 0:00:50]} 65. Kd7 {[%emt 0:00:30]} a1=Q {[%emt 0:00:33]} 0-1

[Event "8th Amsterdam Summer Open-A 2018"]
[Site "Amsterdam"]
[Date "2018.07.08"]
[Round "2"]
[White "Hildenbrand, Peter"]
[Black "Hernandez Iglesias, Francisco"]
[Result "1/2-1/2"]
[ECO "D00"]
[WhiteElo "2226"]
[BlackElo "2047"]
[Annotator "NA"]
[PlyCount "43"]
[EventDate "2018.07.07"]
[EventType "swiss"]
[EventCountry "NED"]
[SourceTitle "playchess.com"]
[Source "ChessBase"]
[SourceQuality "1"]
[TimeControl "40/5400+30:1800+30"]

1. d4 {[%emt 0:00:00]} d5 {[%emt 0:00:00]} 2. Bf4 {[%emt 0:00:00]} Nf6 {[%emt 0:00:00]} 3. e3 {[%emt 0:00:00]} c5 {[%emt 0:00:00]} 4. Nc3 {[%emt 0:01:12]} a6 {[%emt 0:08:20]} 5. dxc5 {[%emt 0:04:58]} Nc6 {[%emt 0:01:09]} 6. Nf3 {[%emt 0:00:39]} Bg4 {[%emt 0:02:26]} 7. Be2 {[%emt 0:00:31]} e6 {[%emt 0:01:26]} 8. Na4 {[%emt 0:06:20]} Ne4 {[%emt 0:03:10]} 9. O-O {[%emt 0:10:31]} Nxc5 {[%emt 0:00:22]} 10. Nxc5 {[%emt 0:00:28]} Bxc5 {[%emt 0:00:09]} 11. Ne5 {[%emt 0:01:14]} Bxe2 {[%emt 0:01:35]} 12. Qxe2 {[%emt 0:00:52]} O-O {[%emt 0:01:51]} 13. Rfd1 {[%emt 0:03:59]} Qe7 {[%emt 0:08:11]} 14. Rac1 {[%emt 0:01:26]} Rac8 {[%emt 0:07:01]} 15. c4 {[%emt 0:02:26]} Nxe5 $11 {[%emt 0:02:34]} 16. Bxe5 {[%emt 0:00:21]} dxc4 {[%emt 0:01:40]} 17. Rxc4 {[%emt 0:04:08]} Rcd8 {[%emt 0:03:05]} 18. Rdc1 {[%emt 0:03:47]} Rd5 {[%emt 0:00:37]} 19. Bf4 {[%emt 0:06:34]} Bd6 {[%emt 0:02:52]} 20. Rd1 {[%emt 0:13:55]} Bxf4 {[%emt 0:02:03]} 21. Rxf4 {[%emt 0:05:16]} Rfd8 {[%emt 0:00:57]} 22. Rxd5 {[%emt 0:07:11]} 1/2-1/2

[Event "8th Amsterdam Summer Open-A 2018"]
[Site "Amsterdam"]
[Date "2018.07.08"]
[Round "2"]
[White "Kohler, Aran"]
[Black "Zondag, Jason"]
[Result "1-0"]
[ECO "A48"]
[WhiteElo "2175"]
[BlackElo "1986"]
[Annotator "NA"]
[PlyCount "59"]
[EventDate "2018.07.07"]
[EventType "swiss"]
[EventCountry "NED"]
[SourceTitle "playchess.com"]
[Source "ChessBase"]
[SourceQuality "1"]
[TimeControl "40/5400+30:1800+30"]

1. Nf3 {[%emt 20:07:30]} Nf6 {[%emt 0:00:16]} 2. d4 {[%emt 0:00:09]} g6 {[%emt 0:00:17]} 3. Bg5 {[%emt 0:00:24]} Bg7 {[%emt 0:00:20]} 4. Nbd2 {[%emt 0:00:15]} h6 {[%emt 0:00:37]} 5. Bxf6 {[%emt 0:00:40] A48: 1 d4 Nf6 2 Nf3 g6: Torre, London and Colle Systems} (5. Bh4 d5 6. e3 Bf5 7. Bd3 Bxd3 8. cxd3 O-O 9. O-O c6 10. Rc1 Qb6 11. Qb3 Nbd7 12. Ne5 Rfe8 13. Bg3 {1-0 (30) So,W (2815)-Giri,A (2785) chess.com INT 2017}) 5... exf6 {[%emt 0:00:49]} 6. e4 {[%emt 0:00:54]} d6 {[%emt 0:01:34]} 7. Bd3 {[%emt 0:00:18]} Nd7 $146 {[%emt 0:02:04]} ({Predecessor:} 7... Qe7 8. O-O O-O 9. c3 c5 10. Nc4 Na6 11. Ne3 Nc7 12. dxc5 dxc5 13. Qc2 Bd7 14. Rfe1 {½-½ (14) Galego,L (2457)-Manolache,M (2478) Ourense 2014}) 8. Qe2 {[%emt 0:00:22]} O-O {[%emt 0:01:41]} 9. O-O-O {[%emt 0:00:37]} c5 {[%emt 0:00:35]} 10. c3 {[%emt 0:02:27]} Qc7 {[%emt 0:01:11]} 11. Kb1 {[%emt 0:00:18]} a6 {[%emt 0:00:57]} 12. h4 {[%emt 0:03:48]} b5 {[%emt 0:03:27]} 13. h5 {[%emt 0:00:10]} g5 {[%emt 0:00:11]} 14. e5 {[%emt 0:00:58]} fxe5 {[%emt 0:03:07]} 15. dxe5 {[%emt 0:09:07]} Bb7 {[%emt 0:03:12]} 16. e6 {[%emt 0:00:21]} Ne5 {[%emt 0:00:24]} 17. Nxe5 {[%emt 0:02:00]} Bxe5 {[%emt 0:00:55]} 18. exf7+ {[%emt 0:04:11]} Qxf7 {[%emt 0:02:29]} 19. f3 {[%emt 0:00:46]} Qg7 {[%emt 0:06:25]} 20. Bg6 {[%emt 0:00:22]} b4 {[%emt 0:00:58]} 21. cxb4 {[%emt 0:00:53]} cxb4 {[%emt 0:04:28]} 22. Nc4 {[%emt 0:03:47]} Rfd8 {[%emt 0:05:07] [#]} 23. Nxd6 $18 {[%emt 0:02:09]} Bxd6 {[%emt 0:06:02]} 24. Qe6+ {[%emt 0:00:07]} Kh8 {[%emt 0:00:19]} 25. Rxd6 {[%emt 0:00:08]} Rxd6 {[%emt 0:05:24]} 26. Qxd6 {[%emt 0:00:09]} g4 {[%emt 0:02:43]} 27. fxg4 {[%emt 0:00:29]} Bxg2 {[%emt 0:00:14]} 28. Re1 {[%emt 0:00:20]} Rf8 {[%emt 0:01:22]} 29. Qxb4 {[%emt 0:00:29]} Qf6 {[%emt 0:04:00]} 30. Qd2 {[%emt 0:01:31]} 1-0

[Event "8th Amsterdam Summer Open-A 2018"]
[Site "Amsterdam"]
[Date "2018.07.08"]
[Round "2"]
[White "Cornelisse, Johnny"]
[Black "Bekedam, Tyro"]
[Result "1-0"]
[ECO "E44"]
[WhiteElo "2132"]
[BlackElo "2019"]
[Annotator "NA"]
[PlyCount "61"]
[EventDate "2018.07.07"]
[EventType "swiss"]
[EventCountry "NED"]
[SourceTitle "playchess.com"]
[Source "ChessBase"]
[SourceQuality "1"]
[TimeControl "40/5400+30:1800+30"]

1. d4 {[%emt 0:14:36]} Nf6 {[%emt 0:00:28]} 2. c4 {[%emt 0:00:26]} e6 {[%emt 0:00:20]} 3. Nc3 {[%emt 0:00:13]} Bb4 {[%emt 0:00:20]} 4. e3 {[%emt 0:00:17]} b6 {[%emt 0:01:49]} 5. Nge2 {[%emt 0:00:16]} Bb7 {[%emt 0:03:30]} 6. a3 {[%emt 0:01:54]} Bxc3+ {[%emt 0:06:51]} 7. Nxc3 {[%emt 0:01:49]} d5 {[%emt 0:01:30]} 8. Be2 {[%emt 0:13:00]} O-O {[%emt 0:03:13]} 9. O-O {[%emt 0:02:02]} c5 {[%emt 0:02:52]} 10. cxd5 {[%emt 0:05:05]} exd5 {[%emt 0:05:30]} 11. b3 {[%emt 0:06:30]} Nc6 {[%emt 0:09:27]} 12. Bf3 {[%emt 0:10:56]} cxd4 {[%emt 0:02:04]} 13. exd4 {[%emt 0:00:05]} h6 {[%emt 0:07:23]} 14. Re1 {[%emt 0:02:52]} Qd7 {[%emt 0:04:19]} 15. Bf4 {[%emt 0:04:23]} Rfe8 {[%emt 0:03:25]} 16. Be5 {[%emt 0:02:34]} Ne7 {[%emt 0:05:51]} 17. Bxf6 $16 {[%emt 0:02:04]} gxf6 {[%emt 0:00:14]} 18. Qd2 {[%emt 0:00:04]} Kg7 {[%emt 0:02:05]} 19. Ne2 {[%emt 0:01:36]} Qf5 {[%emt 0:10:03]} 20. Ng3 {[%emt 0:05:59]} Qg5 {[%emt 0:00:59]} 21. Nh5+ {[%emt 0:02:30]} Kf8 {[%emt 0:01:10]} 22. Qb4 {[%emt 0:00:59]} Rad8 {[%emt 0:04:50]} 23. Re3 {[%emt 0:01:28]} Bc8 {[%emt 0:02:55]} 24. Rae1 {[%emt 0:01:25]} Be6 {[%emt 0:02:06]} 25. h4 {[%emt 0:01:37]} Qxh4 {[%emt 0:01:24]} 26. g3 {[%emt 0:00:42]} Qg5 {[%emt 0:00:55]} 27. Nf4 {[%emt 0:00:11]} Qf5 {[%emt 0:06:02]} 28. Rxe6 {[%emt 0:00:43]} fxe6 {[%emt 0:00:30]} 29. Nxe6+ {[%emt 0:00:08]} Kg8 {[%emt 0:00:09]} 30. Nxd8 {[%emt 0:00:52]} Qxf3 {[%emt 0:01:01]} 31. Qd6 {[%emt 0:00:05]} 1-0